bitfinex-derivatives/quotes_SOLF0:USTF0_20250419
["timestamp","ask_amount","ask_price","bid_price","bid_amount"]
[1745052956352,4.94535274,138.97,138.93,30.95971453]
[1745052956551,5.73971453,138.98,138.93,30.95971453]
[1745052956755,4.94750154,138.97,138.93,30.95971453]
[1745052957059,5.73971453,138.98,138.93,30.95971453]
[1745052957359,4.94842734,138.97,138.93,30.95971453]
[1745052957559,9.50171453,139.0,138.93,30.95971453]
[1745052957760,4.94834336,138.99,138.93,30.95971453]
[1745052957959,4.94834336,138.98,138.93,30.95971453]
[1745052958161,4.94834336,138.97,138.95,5.73971453]
[1745052958362,9.50171453,139.0,138.95,5.73971453]
[1745052958658,4.94913606,138.99,138.95,5.73971453]
[1745052958858,4.94913606,138.98,138.95,5.73971453]
[1745052959059,4.94913606,138.97,138.95,5.73971453]
[1745052959259,9.50171453,139.0,138.95,5.73971453]
[1745052959460,4.94999811,138.99,138.95,5.73971453]
[1745052959659,4.94999811,138.98,138.95,5.73971453]
[1745052959963,4.94999811,138.97,138.95,5.73971453]
[1745052960157,9.50171453,139.0,138.95,5.73971453]
[1745052960358,4.95028124,138.99,138.95,5.73971453]
[1745052960558,4.95028124,138.98,138.96,25.22]
[1745052960756,9.50171453,139.0,138.96,25.22]
[1745052960962,4.95037815,138.99,138.96,25.22]
[1745052961158,3.762,139.0,138.96,25.22]
[1745052961362,4.95116629,138.99,138.96,25.22]
[1745052961563,4.95116629,138.98,138.96,25.22]
[1745052961764,3.762,139.0,138.96,25.22]
[1745052961964,4.95115938,138.99,138.96,25.22]
[1745052962165,4.95216966,138.98,138.96,25.22]
[1745052962365,3.762,139.0,138.96,25.22]
[1745052962663,4.95216967,138.99,138.96,25.22]
[1745052962870,4.95216967,138.98,138.96,25.22]
[1745052963070,3.762,139.0,138.96,25.22]
[1745052963270,4.95237511,138.99,138.96,25.22]
[1745052963468,4.95237511,138.98,138.96,25.22]
[1745052963666,3.762,139.0,138.96,25.22]
[1745052963867,4.95342655,138.99,138.96,25.22]
[1745052964067,4.95342655,138.98,138.96,25.22]
[1745052964266,3.762,139.0,138.96,25.22]
[1745052964566,4.95475203,138.99,138.96,25.22]
[1745052964766,4.95475203,138.98,138.96,25.22]
[1745052964966,3.762,139.0,138.96,25.22]
[1745052965166,4.9547162,138.99,138.96,25.22]
[1745052965366,4.9547162,138.98,138.96,25.22]
[1745052965670,30.95971453,139.02,138.96,25.22]
[1745052965871,4.95600458,139.01,138.96,25.22]
[1745052966171,4.95600458,139.0,138.96,25.22]
[1745052966370,4.95600458,138.99,138.96,25.22]
[1745052966668,4.95600458,138.98,138.96,25.22]
[1745052966866,30.95971453,139.02,138.96,25.22]
[1745052967066,4.95769938,139.01,138.96,25.22]
[1745052967263,4.95769938,139.0,138.96,25.22]
[1745052967467,4.95769938,138.99,138.97,5.73971453]
[1745052967767,1.8923,139.03,138.97,5.73971453]
[1745052967968,4.95929235,139.02,138.97,5.73971453]
[1745052968162,4.95929235,139.01,138.97,5.73971453]
[1745052968370,4.95929235,139.0,138.97,5.73971453]
[1745052968568,4.95929235,138.99,138.97,5.73971453]
[1745052968770,1.8923,139.03,138.97,5.73971453]
[1745052969068,4.96020641,139.02,138.97,5.73971453]
[1745052969370,4.96020641,139.01,138.97,5.73971453]
[1745052969572,4.96020641,139.0,138.97,5.73971453]
[1745052969770,4.96020641,138.99,138.97,5.73971453]
[1745052969972,1.8923,139.03,138.97,5.73971453]
[1745052970171,4.96112741,139.02,138.97,5.73971453]
[1745052970365,4.96112741,139.01,138.97,5.73971453]
[1745052970571,4.96112741,139.0,138.97,5.73971453]
[1745052970771,4.96112741,138.99,138.97,5.73971453]
[1745052970975,25.22,139.05,138.97,5.73971453]
[1745052971177,4.96198886,139.04,138.99,5.73971453]
[1745052971374,4.96198886,139.03,138.99,30.95971453]
[1745052971573,4.96198886,139.02,138.99,30.95971453]
[1745052971773,4.96198886,139.01,138.99,30.95971453]
[1745052971974,4.96198886,139.0,138.99,30.95971453]
[1745052972172,4.96374374,139.0,138.99,30.95971453]
[1745052975575,4.96374374,139.0,138.99,25.22]
[1745052979075,4.96513294,139.0,138.99,25.22]
[1745052985578,4.96513294,139.0,138.97,30.93971453]
[1745052985776,5.73971453,139.03,138.97,25.2]
[1745052985979,5.73971453,138.99,138.93,5.73971453]
[1745052986278,5.73971453,138.99,138.94,25.2]
[1745052987379,5.73971453,139.0,138.95,5.73971453]
[1745052987580,5.73971453,139.01,138.97,5.73971453]
[1745053000081,5.73971453,139.01,138.96,25.2]
[1745053015397,5.68933257,139.0,138.96,25.2]
[1745053015597,5.68933257,138.99,138.96,25.2]
[1745053015799,5.68933257,138.98,138.96,25.2]
[1745053015998,5.68933257,138.97,138.96,25.2]
[1745053019498,5.68933257,138.97,138.93,30.93971453]
[1745053019698,5.68933257,138.96,138.93,30.93971453]
[1745053019900,5.68933257,138.95,138.93,30.93971453]
[1745053020098,5.68933257,138.94,138.93,30.93971453]
[1745053020695,30.93971453,139.01,138.93,30.93971453]
[1745053020899,5.68997965,139.0,138.96,5.73971453]
[1745053021100,30.93971453,139.01,138.96,5.73971453]
[1745053024305,30.93971453,139.01,138.96,30.93971453]
[1745053024605,5.73971453,139.03,138.98,5.73971453]
[1745053032812,5.17203964,139.02,138.98,5.73971453]
[1745053033012,5.17203964,139.01,138.98,5.73971453]
[1745053033214,5.17203964,139.0,138.98,5.73971453]
[1745053033414,5.17203964,138.99,138.98,5.73971453]
[1745053038522,5.17203964,138.99,138.96,30.93971453]
[1745053038817,5.17203964,138.98,138.96,30.93971453]
[1745053039016,5.17203964,138.97,138.96,30.93971453]
[1745053039819,5.17203964,138.97,138.94,30.93971453]
[1745053040118,5.17203964,138.96,138.94,30.93971453]
[1745053040419,5.17203964,138.95,138.94,30.93971453]
[1745053040921,9.63661453,139.01,138.94,30.93971453]
[1745053041217,5.17340514,139.0,138.94,30.93971453]
[1745053041517,9.63661453,139.01,138.94,30.93971453]
[1745053042019,9.63661453,139.01,138.96,5.73971453]
[1745053045024,7.75991453,139.01,138.96,5.73971453]
[1745053045222,5.73971453,139.01,138.96,5.73971453]
[1745053045422,5.73971453,139.01,138.96,30.93971453]
[1745053049222,25.2,139.02,138.98,5.73971453]
[1745053049423,5.73971453,139.03,138.98,5.73971453]
[1745053050028,5.73971453,139.03,138.99,25.2]
[1745053050428,30.93971453,139.05,138.99,25.2]
[1745053050933,30.93971453,139.05,139.0,5.73971453]
[1745053051241,5.73971453,139.05,139.0,5.73971453]
[1745053053035,4.89599294,139.04,139.0,5.73971453]
[1745053053332,4.89599294,139.03,139.0,5.73971453]
[1745053053535,4.89599294,139.02,139.0,5.73971453]
[1745053053734,4.89599294,139.01,139.0,5.73971453]
[1745053054034,4.89599294,139.01,138.99,25.2]
[1745053054236,4.89599294,139.0,138.99,30.93971453]
[1745053054934,5.73971453,139.05,138.99,30.93971453]
[1745053055233,4.89400717,139.04,139.01,5.73971453]
[1745053055435,4.89400717,139.03,139.01,5.73971453]
[1745053055733,4.89400717,139.02,139.01,5.73971453]
[1745053056135,30.93971453,139.08,139.01,5.73971453]
[1745053056334,4.89127658,139.07,139.03,5.73971453]
[1745053056534,4.89127658,139.06,139.03,5.73971453]
[1745053056733,4.89127658,139.05,139.03,5.73971453]
[1745053056933,4.89127658,139.04,139.03,5.73971453]
[1745053058435,4.88410591,139.04,139.03,5.73971453]
[1745053058836,5.73971453,139.09,139.03,5.73971453]
[1745053059135,4.88405324,139.08,139.03,5.73971453]
[1745053059335,4.88405324,139.07,139.03,5.73971453]
[1745053059531,4.88405324,139.06,139.03,5.73971453]
[1745053059734,4.88405324,139.05,139.03,5.73971453]
[1745053059938,5.73971453,139.1,139.03,5.73971453]
[1745053060130,4.8822116,139.09,139.03,5.73971453]
[1745053060329,4.8822116,139.08,139.05,5.73971453]
[1745053060530,1.9509,139.12,139.07,5.73971453]
[1745053060728,4.87937279,139.11,139.07,30.93971453]
[1745053060932,594.39872981,139.24,139.09,5.73971453]
[1745053061137,7.75701453,139.16,139.1,25.2]
[1745053062037,9.63911453,139.16,139.1,25.2]
[1745053067540,5.73971453,139.12,139.05,5.73971453]
[1745053067739,5.73971453,139.1,139.05,5.73971453]
[1745053069143,5.73971453,139.1,139.04,25.18]
[1745053069337,5.73971453,139.08,139.04,25.18]
[1745053079649,5.73971453,139.06,139.04,25.18]
[1745053080143,5.73971453,139.06,139.0,575.29971453]
[1745053080347,5.73971453,139.04,139.0,594.74]
[1745053080541,5.73971453,139.04,139.0,25.18]
[1745053090256,5.73971453,139.06,139.01,5.73971453]
[1745053093457,25.18,139.08,139.03,5.73971453]
[1745053093756,4.7486561,139.07,139.03,5.73971453]
[1745053093950,30.91971453,139.08,139.03,5.73971453]
[1745053094155,4.74865622,139.07,139.03,30.91971453]
[1745053094456,30.91971453,139.08,139.03,30.91971453]
[1745053094656,4.75034961,139.07,139.03,30.91971453]
[1745053094856,4.75034961,139.06,139.03,30.91971453]
[1745053095054,25.18,139.08,139.03,30.91971453]
[1745053095357,10.49010635,139.07,139.03,25.18]
[1745053095556,4.75039182,139.06,139.03,25.18]
[1745053095757,5.73971453,139.07,139.03,25.18]
[1745053095954,4.75130447,139.06,139.03,25.18]
[1745053096152,5.73971453,139.07,139.03,30.91971453]
[1745053096357,4.7514048,139.06,139.03,30.91971453]
[1745053096560,5.73971453,139.07,139.03,30.91971453]
[1745053096752,4.75174207,139.06,139.03,30.91971453]
[1745053096953,25.18,139.08,139.03,30.91971453]
[1745053097253,4.75116132,139.07,139.03,30.91971453]
[1745053097456,5.73971453,139.09,139.03,30.91971453]
[1745053097655,4.75161956,139.08,139.03,30.91971453]
[1745053097854,4.75161956,139.07,139.03,30.91971453]
[1745053098056,5.73971453,139.09,139.03,30.91971453]
[1745053098260,25.18,139.11,139.03,30.91971453]
[1745053098261,4.75158347,139.08,139.05,5.73971453]
[1745053098455,5.73971453,139.1,139.05,5.73971453]
[1745053098659,4.75178085,139.09,139.05,5.73971453]
[1745053098862,4.75178085,139.08,139.05,5.73971453]
[1745053099160,5.73971453,139.1,139.05,5.73971453]
[1745053099360,4.75199296,139.09,139.05,5.73971453]
[1745053099561,4.75199296,139.08,139.05,5.73971453]
[1745053099756,25.18,139.13,139.05,5.73971453]
[1745053100061,4.75195472,139.12,139.09,5.73971453]
[1745053100263,4.75195472,139.11,139.07,5.73971453]
[1745053100457,5.7491,139.14,139.1,5.73971453]
[1745053100760,4.75100162,139.13,139.1,5.73971453]
[1745053100960,4.75100162,139.12,139.1,5.73971453]
[1745053101162,5.73971453,139.15,139.1,5.73971453]
[1745053101361,4.7384526,139.14,139.1,5.73971453]
[1745053101662,4.7384526,139.13,139.1,5.73971453]
[1745053101862,4.7384526,139.12,139.1,5.73971453]
[1745053102062,5.73971453,139.15,139.1,5.73971453]
[1745053102263,4.73753123,139.14,139.1,5.73971453]
[1745053102461,4.73753123,139.13,139.1,5.73971453]
[1745053102661,4.73753123,139.12,139.1,5.73971453]
[1745053102862,5.73971453,139.15,139.1,5.73971453]
[1745053103060,4.73668904,139.14,139.1,5.73971453]
[1745053103362,4.73668904,139.13,139.1,5.73971453]
[1745053103562,4.73668904,139.12,139.09,25.18]
[1745053103764,5.73971453,139.15,139.09,25.18]
[1745053104066,4.73608103,139.14,139.09,25.18]
[1745053104266,4.73608103,139.13,139.09,25.18]
[1745053104466,4.73608103,139.12,139.09,25.18]
[1745053104666,5.73971453,139.15,139.09,25.18]
[1745053104965,4.73565709,139.14,139.09,25.18]
[1745053105165,4.73565709,139.13,139.09,25.18]
[1745053105362,4.73565709,139.12,139.09,25.18]
[1745053105561,4.73565709,139.11,139.09,25.18]
[1745053105759,5.73971453,139.15,139.09,25.18]
[1745053105965,4.73534074,139.14,139.09,25.18]
[1745053106165,4.73534074,139.13,139.09,25.18]
[1745053106366,4.73534074,139.12,139.09,25.18]
[1745053106566,4.73534074,139.11,139.09,25.18]
[1745053106766,5.73971453,139.15,139.08,30.91971453]
[1745053106967,5.73971453,139.13,139.08,30.91971453]
[1745053107167,4.73555894,139.12,139.08,30.91971453]
[1745053107467,4.73555894,139.11,139.08,30.91971453]
[1745053107767,5.73971453,139.13,139.08,30.91971453]
[1745053107968,4.73605069,139.12,139.08,30.91971453]
[1745053108169,4.73605069,139.11,139.08,30.91971453]
[1745053108370,5.73971453,139.14,139.08,30.91971453]
[1745053108566,4.73650424,139.13,139.08,30.91971453]
[1745053108771,4.73650424,139.12,139.08,30.91971453]
[1745053108969,4.73650424,139.11,139.08,30.91971453]
[1745053109171,5.73971453,139.14,139.08,30.91971453]
[1745053109371,4.0282,139.18,139.08,5.73971453]
[1745053109372,5.73971453,139.12,139.08,5.73971453]
[1745053109570,4.73725559,139.11,139.08,5.73971453]
[1745053109870,4.73725559,139.1,139.06,5.73971453]
[1745053110070,5.73971453,139.12,139.06,5.73971453]
[1745053110273,4.73761743,139.11,139.06,5.73971453]
[1745053110572,4.73761743,139.1,139.06,5.73971453]
[1745053110873,5.73971453,139.12,139.06,5.73971453]
[1745053111074,4.73851836,139.11,139.06,5.73971453]
[1745053111271,4.73851836,139.1,139.06,5.73971453]
[1745053111473,5.73971453,139.12,139.06,5.73971453]
[1745053111774,4.73952697,139.11,139.06,5.73971453]
[1745053111975,4.73952697,139.1,139.06,5.73971453]
[1745053112270,4.74032833,139.09,139.06,5.73971453]
[1745053112471,5.73971453,139.12,139.06,5.73971453]
[1745053112673,4.7404241,139.11,139.06,5.73971453]
[1745053112872,4.7404241,139.1,139.06,5.73971453]
[1745053113071,4.7404241,139.09,139.06,5.73971453]
[1745053113272,5.73971453,139.12,139.06,5.73971453]
[1745053113473,4.7402962,139.11,139.06,5.73971453]
[1745053113674,4.7402962,139.1,139.06,5.73971453]
[1745053113974,4.7402962,139.09,139.06,5.73971453]
[1745053114173,5.73971453,139.12,139.06,5.73971453]
[1745053114374,4.73997406,139.11,139.06,5.73971453]
[1745053114574,4.73997406,139.1,139.06,5.73971453]
[1745053114875,4.73997406,139.09,139.05,5.73971453]
[1745053115077,4.74022474,139.08,139.05,5.73971453]
[1745053115375,5.73971453,139.1,139.05,5.73971453]
[1745053115575,4.74039659,139.09,139.04,32.89781453]
[1745053115772,4.74039659,139.08,139.04,32.89781453]
[1745053115972,4.74039659,139.07,139.04,32.89781453]
[1745053116273,5.73971453,139.1,139.04,32.89781453]
[1745053116474,4.74069218,139.09,139.04,32.89781453]
[1745053116776,4.74069218,139.08,139.04,32.89781453]
[1745053116978,5.73971453,139.1,139.04,32.89781453]
[1745053117276,4.74072366,139.09,139.04,32.89781453]
[1745053117476,4.74035077,139.08,139.04,32.89781453]
[1745053117677,5.73971453,139.1,139.04,32.89781453]
[1745053117877,4.74070976,139.09,139.04,32.89781453]
[1745053118078,4.74070976,139.08,139.04,32.89781453]
[1745053118272,5.73971453,139.1,139.04,32.89781453]
[1745053121780,5.73971453,139.1,139.04,30.91971453]
[1745053121982,30.91971453,139.1,139.04,30.91971453]
[1745053132888,5.73971453,139.08,139.04,30.91971453]
[1745053133084,5.73971453,139.08,139.02,5.73971453]
[1745053133388,5.73971453,139.08,139.01,30.91971453]
[1745053133793,5.73971453,139.08,139.03,5.73971453]
[1745053134292,30.91971453,139.1,139.03,5.73971453]
[1745053137694,25.18,139.1,139.05,5.73971453]
[1745053137892,3.8555,139.12,139.07,5.73971453]
[1745053138091,5.73971453,139.14,139.09,5.73971453]
[1745053145402,5.73971453,139.14,139.07,30.91971453]
[1745053145601,5.73971453,139.12,139.07,30.91971453]
[1745053147901,5.73971453,139.14,139.07,30.91971453]
[1745053150405,5.73971453,139.14,139.09,5.73971453]
[1745053154208,5.73971453,139.14,139.07,30.91971453]
[1745053164618,25.18,139.13,139.07,30.91971453]
[1745053189829,5.73971453,139.12,139.07,25.18]
[1745053190133,5.73971453,139.1,139.05,5.73971453]
[1745053193834,5.73971453,139.1,139.04,30.91971453]
[1745053200641,5.73971453,139.12,139.06,5.73971453]
[1745053201339,5.73971453,139.12,139.04,25.18]
[1745053201544,5.73971453,139.12,139.08,5.73971453]
[1745053201947,5.73971453,139.12,139.08,12.93011453]
[1745053205851,5.73971453,139.12,139.09,7.1901]
[1745053212858,5.73971453,139.12,139.08,12.93011453]
[1745053213059,5.73971453,139.12,139.06,30.91971453]
[1745053213556,5.73971453,139.12,139.08,7.1906]
[1745053215758,5.73971453,139.12,139.06,30.91971453]
[1745053225065,5.04263214,139.11,139.06,30.91971453]
[1745053225265,5.04263214,139.1,139.06,30.91971453]
[1745053225467,5.04263214,139.09,139.06,30.91971453]
[1745053225666,5.04263214,139.08,139.06,30.91971453]
[1745053225867,5.04263214,139.07,139.06,30.91971453]
[1745053233275,5.04263214,139.07,139.06,5.73971453]
[1745053235877,5.73971453,139.12,139.06,5.73971453]
[1745053239580,5.73971453,139.12,139.03,25.18]
[1745053239879,5.73971453,139.08,139.02,5.73971453]
[1745053240178,30.91971453,139.08,139.02,5.73971453]
[1745053253684,5.9125,139.11,139.04,5.73971453]
[1745053253885,31.0925,139.11,139.08,5.73971453]
[1745053254489,31.0925,139.11,139.07,7.1909]
[1745053254783,36.83221453,139.11,139.07,7.1909]
[1745053255486,36.83221453,139.11,139.06,12.93111453]
[1745053256787,36.83221453,139.11,139.05,12.93171453]
[1745053261094,5.73971453,139.09,139.05,12.93171453]
[1745053265498,5.0503768,139.08,139.05,12.93171453]
[1745053265797,5.0503768,139.07,139.03,30.91971453]
[1745053265999,5.0503768,139.06,139.03,5.73971453]
[1745053266298,5.0503768,139.05,139.03,5.73971453]
[1745053266497,5.0503768,139.04,139.03,5.73971453]
[1745053270303,5.58666734,139.04,139.03,5.73971453]
[1745053272214,5.58666734,139.04,139.03,7.1927]
[1745053273414,5.58737616,139.04,138.98,575.05971453]
[1745053273615,5.58737616,139.03,138.98,575.05971453]
[1745053273912,5.58737616,139.02,138.98,575.05971453]
[1745053274108,5.58737616,139.01,138.98,5.73971453]
[1745053274314,5.58737616,139.0,138.98,5.73971453]
[1745053274510,5.58737616,138.99,138.98,5.73971453]
[1745053276216,5.73971453,139.03,138.98,5.73971453]
[1745053276416,5.58288042,139.02,138.98,5.73971453]
[1745053276712,5.58288042,139.01,138.98,5.73971453]
[1745053276912,5.58288042,139.0,138.98,5.73971453]
[1745053277109,5.73971453,139.03,138.98,5.73971453]
[1745053277312,5.58291045,139.02,138.98,5.73971453]
[1745053277515,5.58291045,139.01,138.98,5.73971453]
[1745053277715,5.58291045,139.0,138.98,5.73971453]
[1745053278013,5.73971453,139.03,138.98,5.73971453]
[1745053278214,5.58291132,139.02,138.98,5.73971453]
[1745053278514,5.58291132,139.01,138.98,5.73971453]
[1745053278717,5.58291132,139.0,138.97,25.18]
[1745053278909,5.8618,139.06,139.0,5.73971453]
[1745053279113,5.58332535,139.05,139.02,5.73971453]
[1745053279312,5.58601372,139.04,139.02,5.73971453]
[1745053279512,5.58601372,139.03,139.02,5.73971453]
[1745053280515,5.58601372,139.03,139.01,30.91971453]
[1745053280710,5.58601372,139.02,139.01,30.91971453]
[1745053288355,5.59238562,139.02,138.99,5.73971453]
[1745053288554,5.59238562,139.01,138.98,5.73971453]
[1745053288752,5.59238562,139.0,138.98,5.73971453]
[1745053289048,5.59238562,138.99,138.98,5.73971453]
[1745053290059,5.59238562,138.99,138.95,600.41971453]
[1745053290250,5.59238562,138.98,138.95,30.91971453]
[1745053290451,5.59238562,138.97,138.95,30.91971453]
[1745053290738,5.59238562,138.96,138.95,30.91971453]
[1745053291399,5.59238562,138.96,138.95,25.18]
[1745053292354,5.59238562,138.96,138.95,30.91971453]
[1745053295153,5.73971453,139.0,138.95,30.91971453]
[1745053295459,5.41843966,138.99,138.95,30.91971453]
[1745053295658,5.41843966,138.98,138.95,30.91971453]
[1745053295847,5.41843966,138.97,138.95,30.91971453]
[1745053296051,5.73971453,139.0,138.95,30.91971453]
[1745053296254,5.41718957,138.99,138.95,30.91971453]
[1745053296455,5.41718957,138.98,138.95,30.91971453]
[1745053296649,5.41720325,138.97,138.95,30.91971453]
[1745053296873,5.73971453,139.0,138.95,30.91971453]
[1745053297146,5.41716851,138.99,138.95,30.91971453]
[1745053297447,5.41716851,138.98,138.95,30.91971453]
[1745053297748,5.41716851,138.97,138.95,30.91971453]
[1745053297951,5.73971453,139.0,138.95,30.91971453]
[1745053298150,5.41599276,138.99,138.95,30.91971453]
[1745053298451,5.41599276,138.98,138.95,30.91971453]
[1745053298655,5.41599276,138.97,138.95,30.91971453]
[1745053298846,5.73971453,139.0,138.95,30.91971453]
[1745053299056,5.41494158,138.99,138.95,30.91971453]
[1745053299256,5.41494158,138.98,138.95,30.91971453]
[1745053299444,5.73971453,139.0,138.95,30.91971453]
[1745053299654,5.41403198,138.99,138.95,30.91971453]
[1745053299852,5.41403198,138.98,138.95,30.91971453]
[1745053300153,5.6626,139.01,138.97,5.73971453]
[1745053300154,3.7659,139.01,138.97,5.73971453]
[1745053300345,5.41344919,139.0,138.99,5.73971453]
[1745053301650,5.41344919,139.0,138.97,5.73971453]
[1745053301845,25.18,139.02,138.97,5.73971453]
[1745053302047,5.41364533,139.01,138.97,5.73971453]
[1745053302344,5.41364533,139.0,138.97,5.73971453]
[1745053302546,25.18,139.02,138.97,5.73971453]
[1745053302841,5.41393034,139.01,138.97,5.73971453]
[1745053303138,5.41393034,139.0,138.97,5.73971453]
[1745053303340,25.18,139.02,138.97,5.73971453]
[1745053303542,5.414169,139.01,138.97,5.73971453]
[1745053303737,5.414169,139.0,138.97,5.73971453]
[1745053303933,5.41417144,138.99,138.97,5.73971453]
[1745053304131,30.91971453,139.02,138.97,5.73971453]
[1745053304328,5.41435366,139.01,138.97,5.73971453]
[1745053304522,5.41435366,139.0,138.97,5.73971453]
[1745053304725,5.41435366,138.99,138.97,5.73971453]
[1745053304926,30.91971453,139.02,138.97,5.73971453]
[1745053305126,5.41435323,139.01,138.97,5.73971453]
[1745053305326,5.41435323,139.0,138.97,5.73971453]
[1745053305527,5.41435323,138.99,138.97,5.73971453]
[1745053305727,30.91971453,139.02,138.97,5.73971453]
[1745053305923,5.41454689,139.01,138.97,5.73971453]
[1745053306133,5.41454689,139.0,138.97,5.73971453]
[1745053306429,5.41454689,138.99,138.97,5.73971453]
[1745053306630,30.91971453,139.02,138.97,5.73971453]
[1745053306929,5.41474207,139.01,138.97,5.73971453]
[1745053307132,5.41474207,139.0,138.97,5.73971453]
[1745053307331,5.41474207,138.99,138.97,5.73971453]
[1745053307526,5.41474207,138.98,138.97,5.73971453]
[1745053308735,30.91971453,139.02,138.97,5.73971453]
[1745053308935,5.41497244,139.01,138.97,5.73971453]
[1745053309135,5.41497244,139.0,138.97,5.73971453]
[1745053309435,5.41497244,138.99,138.97,5.73971453]
[1745053309626,30.91971453,139.02,138.97,5.73971453]
[1745053309826,5.41508427,139.01,138.97,5.73971453]
[1745053310030,5.41508427,139.0,138.97,5.73971453]
[1745053310232,5.41508427,138.99,138.97,5.73971453]
[1745053310432,25.18,139.02,138.97,5.73971453]
[1745053310734,5.41539168,139.01,138.97,5.73971453]
[1745053310934,30.91971453,139.02,138.97,5.73971453]
[1745053310935,5.41539168,139.0,138.97,5.73971453]
[1745053311135,5.41539168,138.99,138.97,5.73971453]
[1745053311336,30.91971453,139.02,138.97,5.73971453]
[1745053311533,5.41610718,139.01,138.97,5.73971453]
[1745053311734,5.41610718,139.0,138.97,5.73971453]
[1745053311934,5.41610718,138.99,138.97,5.73971453]
[1745053312237,30.91971453,139.02,138.97,5.73971453]
[1745053312535,5.4167758,139.01,138.97,5.73971453]
[1745053312726,5.4167758,139.0,138.97,5.73971453]
[1745053312929,5.4167758,138.99,138.97,5.73971453]
[1745053313539,1.8663,139.03,138.97,5.73971453]
[1745053313739,1.8663,139.03,139.0,5.73971453]
[1745053320443,9.51601453,139.04,139.0,5.73971453]
[1745053320642,9.51601453,139.04,138.95,25.18]
[1745053320843,9.51601453,139.04,138.99,5.73971453]
[1745053325846,3.7763,139.04,138.99,5.73971453]
[1745053328243,25.18,139.05,138.99,5.73971453]
[1745053328546,30.91971453,139.05,138.99,5.73971453]
[1745053331751,5.73971453,139.03,138.98,25.18]
[1745053332049,5.73971453,139.03,138.97,5.73971453]
[1745053339562,5.73971453,139.01,138.97,5.73971453]
[1745053339862,5.73971453,139.01,138.95,30.91971453]
[1745053341659,5.73971453,139.01,138.97,5.73971453]
[1745053343168,5.43913799,139.0,138.97,5.73971453]
[1745053343465,5.43913799,138.99,138.97,5.73971453]
[1745053343765,5.43913799,138.98,138.97,5.73971453]
[1745053349669,5.43913799,138.98,138.95,30.91971453]
[1745053349864,5.43913799,138.97,138.95,30.91971453]
[1745053350068,5.43913799,138.96,138.93,5.73971453]
[1745053350363,5.43913799,138.95,138.93,5.73971453]
[1745053350563,5.43913799,138.94,138.93,5.73971453]
[1745053351067,5.30548591,138.94,138.93,5.73971453]
[1745053351870,11.74121453,139.01,138.93,5.73971453]
[1745053352061,11.74121453,139.01,138.96,5.73971453]
[1745053355069,6.0015,139.01,138.96,5.73971453]
[1745053356567,1.9925,139.01,138.96,5.73971453]
[1745053359272,25.18,139.02,138.98,5.73971453]
[1745053361577,5.73971453,139.04,138.98,5.73971453]
[1745053361775,32.92501453,139.05,138.98,5.73971453]
[1745053363378,32.92501453,139.05,138.98,30.91971453]
[1745053363774,5.16784687,139.04,138.98,30.91971453]
[1745053364073,32.92501453,139.05,138.98,30.91971453]
[1745053364278,5.16784687,139.04,138.98,30.91971453]
[1745053364477,5.16784687,139.03,138.98,30.91971453]
[1745053364677,5.16784687,139.02,138.98,30.91971453]
[1745053364878,5.16784687,139.01,138.98,30.91971453]
[1745053365177,5.16784687,139.0,138.98,30.91971453]
[1745053365376,5.16784687,138.99,138.98,30.91971453]
[1745053368773,1.9707,139.06,138.98,30.91971453]
[1745053368979,25.18,139.08,139.03,5.73971453]
[1745053370679,5.73971453,139.1,139.03,5.73971453]
[1745053371280,5.73971453,139.1,139.05,7.192]
[1745053371583,5.73971453,139.1,139.03,5.73971453]
[1745053371780,5.73971453,139.1,139.06,7.1914]
[1745053372678,36.66691453,139.11,139.07,7.1911]
[1745053373873,5.73971453,139.12,139.08,7.1906]
[1745053374078,5.73971453,139.12,139.07,5.73971453]
[1745053381985,3.9625,139.15,139.09,5.73971453]
[1745053382193,3.9625,139.15,139.08,25.16]
[1745053382194,3.9625,139.15,139.11,5.73971453]
[1745053382382,3.9625,139.15,139.11,30.89971453]
[1745053382689,7.77721453,139.19,139.13,5.73971453]
[1745053382889,4.86338552,139.18,139.14,25.16]
[1745053383092,2.0375,139.19,139.14,25.16]
[1745053383489,4.85883647,139.18,139.14,25.16]
[1745053383689,2.0375,139.19,139.14,25.16]
[1745053383890,4.85883081,139.18,139.15,7.1866]
[1745053384091,2.0375,139.19,139.15,7.1866]
[1745053384591,2.0375,139.19,139.16,7.1864]
[1745053384884,5.73971453,139.18,139.16,7.1864]
[1745053385190,5.73971453,139.18,139.15,7.1868]
[1745053385390,2.0375,139.19,139.15,7.1868]
[1745053385591,5.73971453,139.18,139.15,7.1868]
[1745053385791,5.73971453,139.18,139.14,25.16]
[1745053386691,5.73971453,139.18,139.16,7.1862]
[1745053386989,7.77721453,139.19,139.16,7.1862]
[1745053387691,5.73971453,139.19,139.16,7.1862]
[1745053388892,5.73971453,139.19,139.14,25.16]